[Event "SixDays Budapest March IM B 2025"]
[Site "Budapest"]
[Date "2025.03.26"]
[Round "4.3"]
[White "Savanovic, Aleksandar"]
[Black "Horvath, David"]
[Result "1-0"]
[Annotator "TA"]
[ECO "C11"]
[WhiteElo "2355"]
[BlackElo "2279"]
[PlyCount "121"]
[EventDate "2025.03.23"]
[EventCountry "HUN"]
[SourceTitle "playchess.com"]
[Source "ChessBase"]
[SourceQuality "1"]
[TimeControl "5400+30"]

{[%evp 16,121,19,19,5,15,40,32,56,44,40,46,123,29,29,31,31,23,31,25,43,5,5,5,5,5,5,2,5,0,5,5,11,7,22,20,28,12,20,7,9,7,10,0,25,23,20,17,8,8,12,11,52,43,50,42,72,62,71,0,96,85,114,91,91,53,69,79,91,91,126,112,114,118,133,31,43,96,86,104,118,37,147,147,147,147,147,127,139,8,8,8,379,379,4134,4106,5385,5118,5409,5093,5089,5085,29984,29985,29985,29984,29988,29989]} 1. e4 {[%emt 0:01:43]} e6 {[%emt 0:00:04]} 2. d4 {[%emt 0:00:14]} d5 {[%emt 0:00:03]} 3. Nc3 {[%emt 0:01:07]} Nf6 {[%emt 0:00:04]} 4. e5 {[%emt 0:00:12]} Nfd7 {[%emt 0:00:04]} 5. f4 {[%emt 0:00:05]} c5 {[%emt 0:00:03]} 6. Nf3 {[%emt 0:00:09]} Nc6 {[%emt 0:00:04]} 7. Be3 {[%emt 0:00:08]} Be7 {[%emt 0:00:19]} 8. Qd2 {[%emt 0:00:30]} a6 {[%emt 0:00:12]} 9. Be2 {[%emt 0:00:45]} O-O {[%emt 0:07:40] C11: French: Classical System: 4 e5 and 4 Bg5 dxe4.} 10. O-O {[%emt 0:00:06]} f6 {[%emt 0:09:27]} 11. exf6 {[%emt 0:06:15]} Nxf6 {[%emt 0:00:09] Black sacrificed a pawn. White is slightly better.} 12. dxc5 {[%emt 0:16:57]} Qa5 {[%emt 0:23:24]} 13. Kh1 {[%emt 0:06:08]} Bxc5 $146 {[%emt 0:00:55]} (13... Ng4 $14) ({Predecessor:} 13... Ng4 14. Bg1 Bxc5 15. Nd4 Bxd4 16. Bxd4 Nf6 17. Qe3 Nxd4 18. Qxd4 Bd7 19. Rae1 Rac8 20. Bd3 Rfe8 21. Re5 Qc5 22. Qxc5 Rxc5 23. h3 Rec8 24. Kh2 b5 25. Rfe1 {½-½ Nemeth,F (2430)-Gleizerov,E (2570) Galati Grand Prix op 2007 (9)}) 14. Bxc5 {[%emt 0:04:02]} (14. Nxd5 $1 $16 Qxd2 15. Nxf6+ (15. Nxd2 Bxe3 16. Nxe3 Nd4 $16) 15... Rxf6 16. Bxd2) 14... Qxc5 $11 {[%emt 0:00:05]} 15. Bd3 {[%emt 0:03:37] Prevents Ne4.} Bd7 {[%emt 0:05:07]} 16. Rae1 {[%emt 0:03:19]} Rae8 {[%emt 0:05:52]} 17. a3 {[%emt 0:05:08]} b5 {[%emt 0:09:29]} 18. Ne2 {[%emt 0:10:19][%cal Bc3e2,Be2d4,Bd4f3,Bf3d2][%mdl 32]} e5 {[%emt 0:08:57]} 19. Nxe5 {[%emt 0:04:57]} Nxe5 {[%emt 0:00:04]} 20. fxe5 {[%emt 0:00:06]} Rxe5 {[%emt 0:00:02]} 21. c3 {[%emt 0:04:53]} Ng4 {[%emt 0:16:29]} 22. Nd4 {[%emt 0:00:38]} Rxe1 {[%emt 0:05:18]} 23. Qxe1 {[%emt 0:00:51]} Rxf1+ {[%emt 0:00:22]} 24. Bxf1 {[%emt 0:05:15]} Qd6 {[%emt 0:00:12][%csl Gg4][%cal Rd6h2] [#]} 25. Nf3 {[%emt 0:00:27]} Bf5 {[%emt 0:01:57]} 26. Qe8+ {[%emt 0:10:53]} Qf8 {[%emt 0:00:01]} 27. Qxf8+ {[%emt 0:00:40]} Kxf8 {[%emt 0:00:15][%mdl 4096] Endgame KBN-KBN} 28. Kg1 {[%emt 0:00:28] Prevents Nf2} Ke7 {[%emt 0:02:47]} 29. Be2 {[%emt 0:00:12]} Be4 {[%emt 0:01:50]} 30. Nd2 {[%emt 0:02:34]} Nf6 {[%emt 0:01:43]} 31. Kf2 {[%emt 0:00:36]} Kd6 {[%emt 0:00:25]} 32. g3 {[%emt 0:00:49]} Ke5 {[%emt 0:00:28]} 33. Ke3 {[%emt 0:00:08]} Ne8 {[%emt 0:01:12]} 34. Nb3 {[%emt 0:03:12]} Bf5 {[%emt 0:01:22]} 35. Nd4 {[%emt 0:02:18]} Be4 {[%emt 0:00:14]} 36. Nc6+ {[%emt 0:00:36]} Kd6 {[%emt 0:00:08]} 37. Nd4 {[%emt 0:00:39]} Ke5 {[%emt 0:00:07]} 38. Bg4 {[%emt 0:03:10]} Nd6 {[%emt 0:01:41]} 39. Nc6+ {[%emt 0:01:20]} Kf6 {[%emt 0:00:02]} 40. b3 {[%emt 0:01:39]} Bc2 {[%emt 0:00:47]} 41. b4 {[%emt 0:00:04]} Nc4+ {[%emt 0:00:54]} 42. Kd4 {[%emt 0:00:06]} Nxa3 {[%emt 0:00:26]} 43. Bc8 {[%emt 0:01:38]} Bb3 {[%emt 0:00:33]} 44. Bxa6 {[%emt 0:00:17] White is more active.} Bc4 {[%emt 0:00:22]} 45. Kc5 {[%emt 0:01:39]} (45. Na5 $16) 45... Nb1 $14 {[%emt 0:00:15]} 46. Bxb5 {[%emt 0:00:37]} Bxb5 {[%emt 0:00:09]} 47. Kxb5 {[%emt 0:00:05]} Nxc3+ {[%emt 0:00:05] KN-KN} 48. Kc5 {[%emt 0:00:07]} ({White should play} 48. Ka6 $16) 48... Kf5 {[%emt 0:00:55]} (48... Ke6 $1 $14) 49. Kd4 $16 {[%emt 0:00:44]} Nb5+ {[%emt 0:01:18]} 50. Kxd5 {[%emt 0:00:05]} Kg4 {[%emt 0:00:04] [#]} 51. Nd4 $1 {[%emt 0:00:55]} Na3 {[%emt 0:01:04]} 52. b5 {[%emt 0:00:46]} (52. Ne6 $16) 52... Nxb5 $1 $11 {[%emt 0:00:04]} 53. Nxb5 {[%emt 0:00:04] KN-KPP} Kh3 $2 {[%emt 0:00:08][%mdl 8192] Loses the game.} (53... h5 $1 $11) 54. Ke4 $18 {[%emt 0:00:06] aiming for Kf3.} Kxh2 $2 {[%emt 0:01:07]} (54... Kg4 55. Nd4 Kg5) 55. Kf3 {[%emt 0:00:05]} h5 {[%emt 0:00:13]} 56. Nd4 {[%emt 0:00:34]} g5 {[%emt 0:00:29][%cal Bg7g5,Bg5g4,Bg4g3,Bg3g2][%mdl 32]} 57. Ne6 {[%emt 0:01:18]} g4+ {[%emt 0:00:30]} 58. Kf4 {[%emt 0:00:45]} h4 {[%emt 0:00:46]} 59. gxh4 {[%emt 0:00:08] White mates.} ({Worse is} 59. Kxg4 hxg3 60. Nf4 g2 $11) 59... g3 {[%emt 0:00:10]} 60. Ng5 {[%emt 0:00:12]} g2 {[%emt 0:00:37]} 61. Nf3+ {[%emt 0:00:05] Weighted Error Value: White=0.21 (precise) /Black=0.58  Loses game:     	---       	Black=1      Mistake:       	White=4     	Black=3      Inaccurate:     	White=2     	Black=5      OK:         	White=14    	Black=16     Best:        	White=8     	Black=2      Strong:       	---       	Black=1} 1-0

[Event "SixDays Budapest March IM B 2025"]
[Site "Budapest"]
[Date "2025.03.26"]
[Round "4.4"]
[White "Suder, Jakub"]
[Black "Vuelban, Virgilio"]
[Result "0-1"]
[Annotator "ChessBase"]
[ECO "E94"]
[WhiteElo "2347"]
[BlackElo "2244"]
[PlyCount "96"]
[EventDate "2025.03.23"]
[EventCountry "HUN"]
[SourceTitle "playchess.com"]
[Source "ChessBase"]
[SourceQuality "1"]
[TimeControl "5400+30"]

1. d4 {[%emt 0:00:08]} Nf6 {[%emt 0:08:17]} 2. c4 {[%emt 0:00:06]} g6 {[%emt 0:00:18]} 3. Nc3 {[%emt 0:00:06]} Bg7 {[%emt 0:00:06]} 4. e4 {[%emt 0:00:09]} d6 {[%emt 0:00:05]} 5. Nf3 {[%emt 0:00:14]} O-O {[%emt 0:00:13]} 6. Be2 {[%emt 0:00:05]} e5 {[%emt 0:00:06]} 7. O-O {[%emt 0:00:05]} Bg4 {[%emt 0:00:18]} 8. d5 {[%emt 0:00:10]} a5 {[%emt 0:01:51]} 9. Ne1 {[%emt 0:00:33]} Bd7 {[%emt 0:01:33]} 10. Nd3 {[%emt 0:04:36]} Na6 {[%emt 0:00:21]} 11. Be3 {[%emt 0:01:08]} b6 {[%emt 0:00:44]} 12. b3 {[%emt 0:06:40]} Nc5 {[%emt 0:01:53]} 13. f3 {[%emt 0:01:01]} Nh5 {[%emt 0:00:50]} 14. Qd2 {[%emt 0:05:54]} f5 {[%emt 0:07:56]} 15. Rab1 {[%emt 0:03:38]} f4 {[%emt 0:08:22]} 16. Bf2 {[%emt 0:00:13]} Bf6 {[%emt 0:00:56]} 17. a3 {[%emt 0:04:39]} Bh4 {[%emt 0:03:54]} 18. b4 {[%emt 0:01:56]} Nxd3 {[%emt 0:01:29]} 19. Bxd3 {[%emt 0:00:40]} Bg3 {[%emt 0:01:29]} 20. Ne2 {[%emt 0:11:58]} Bxf2+ {[%emt 0:03:27]} 21. Rxf2 {[%emt 0:00:18]} axb4 {[%emt 0:00:08]} 22. axb4 {[%emt 0:00:42]} g5 {[%emt 0:00:10]} 23. Nc3 {[%emt 0:05:40]} Kh8 {[%emt 0:09:14]} 24. Be2 {[%emt 0:06:06]} Rg8 {[%emt 0:00:26]} 25. Qb2 {[%emt 0:02:25]} g4 {[%emt 0:15:35]} 26. fxg4 {[%emt 0:00:11]} Bxg4 {[%emt 0:00:05]} 27. Bxg4 {[%emt 0:00:38]} Rxg4 {[%emt 0:00:07]} 28. Ra1 {[%emt 0:00:51]} Rc8 {[%emt 0:17:38]} 29. Qe2 {[%emt 0:11:31]} Qh4 {[%emt 0:00:30]} 30. Qf3 {[%emt 0:01:24]} Rcg8 {[%emt 0:03:12]} 31. Ne2 {[%emt 0:02:12]} Nf6 {[%emt 0:02:40]} 32. c5 {[%emt 0:12:24]} bxc5 {[%emt 0:01:14]} 33. bxc5 {[%emt 0:00:05]} R4g6 {[%emt 0:01:27]} 34. h3 {[%emt 0:00:58]} Rh6 {[%emt 0:00:43]} 35. Ra3 {[%emt 0:03:06]} Ng4 {[%emt 0:00:53]} 36. Rf1 {[%emt 0:01:52]} Ne3 {[%emt 0:00:12]} 37. Rxe3 {[%emt 0:03:28]} fxe3 {[%emt 0:00:17]} 38. cxd6 {[%emt 0:01:56]} cxd6 {[%emt 0:00:30]} 39. Qxe3 {[%emt 0:01:08]} Qxh3 {[%emt 0:02:00]} 40. Qxh3 {[%emt 0:00:46]} Rxh3 {[%emt 0:00:06]} 41. Rf6 {[%emt 0:00:49]} Rh4 {[%emt 0:00:31]} 42. Rxd6 {[%emt 0:00:18]} Rxe4 {[%emt 0:00:14]} 43. Nc3 {[%emt 0:00:04]} Reg4 {[%emt 0:00:33]} 44. Nb5 {[%emt 0:00:15]} Rxg2+ {[%emt 0:00:08]} 45. Kf1 {[%emt 0:00:02]} R2g6 {[%emt 0:03:29]} 46. Rd7 {[%emt 0:00:11]} R6g7 {[%emt 0:00:12]} 47. Rd6 {[%emt 0:00:08]} Rb8 {[%emt 0:00:14]} 48. Nc3 {[%emt 0:00:12]} Rc7 {[%emt 0:00:19]} 0-1

[Event "SixDays Budapest March IM B 2025"]
[Site "Budapest"]
[Date "2025.03.26"]
[Round "4.5"]
[White "Banerjee, Supratit"]
[Black "Shah, Vishwa"]
[Result "1/2-1/2"]
[Annotator "TA"]
[ECO "B51"]
[WhiteElo "2250"]
[BlackElo "2172"]
[PlyCount "57"]
[EventDate "2025.03.23"]
[EventCountry "HUN"]
[SourceTitle "playchess.com"]
[Source "ChessBase"]
[SourceQuality "1"]
[TimeControl "5400+30"]

{[%evp 10,57,0,0,0,-4,4,0,16,-7,-4,-5,-8,-2,0,-17,-16,-18,0,-21,47,0,128,65,179,0,13,0,0,0,0,0,0,0,0,0,0,0,7,0,0,0,0,0,0,0,0,-24,-22,-25]} 1. e4 {[%emt 0:00:09]} c5 {[%emt 0:00:06]} 2. Nf3 {[%emt 0:00:06]} d6 {[%emt 0:00:06]} 3. Bb5+ {[%emt 0:00:31]} Nd7 {[%emt 0:00:10]} 4. O-O {[%emt 0:00:15]} a6 {[%emt 0:00:28]} 5. Bxd7+ {[%emt 0:00:30]} Bxd7 {[%emt 0:00:06]} 6. c3 {[%emt 0:02:11]} Nf6 {[%emt 0:03:52][%cal Bg8f6,Bf6d5,Bd5b4,Bb4c6][%mdl 32] B51: Sicilian: Moscow Variation (3 Bb5+) without 3...Bd7.} 7. Re1 {[%emt 0:00:17]} e6 {[%emt 0:04:44]} 8. d4 {[%emt 0:00:07]} Be7 {[%emt 0:02:33]} 9. e5 {[%emt 0:00:46]} dxe5 {[%emt 0:00:53]} 10. dxe5 {[%emt 0:00:09]} Nd5 {[%emt 0:00:05]} 11. c4 {[%emt 0:00:26]} Nb4 {[%emt 0:11:47]} 12. a3 {[%emt 0:01:09]} Nc6 {[%emt 0:00:05]} 13. Nc3 {[%emt 0:00:07]} O-O {[%emt 0:00:26]} 14. Ne4 {[%emt 0:24:36]} Qc7 {[%emt 0:00:26]} (14... Na5 $1 $11) 15. Bg5 $146 {[%emt 0:06:44]} (15. Bf4 $14) (15. Bf4 Rad8 16. Qc2 h6 17. Rad1 Bc8 18. g3 Rxd1 19. Rxd1 g5 20. Nfxg5 hxg5 21. Nf6+ Bxf6 22. exf6 gxf4 {1-0 Mahdavi,R (2436)-Volkov,M (2325) Titled Tuesday intern op 25th Feb Early blitz 2025 (7)}) 15... Bxg5 {[%emt 0:04:27]} (15... f6 $11 16. exf6 gxf6) 16. Nexg5 $16 {[%emt 0:05:23]} h6 {[%emt 0:01:10] [#]} ({Black should try} 16... Rad8 $14) 17. Ne4 $2 {[%emt 0:00:12]} ({Only move:} 17. Qd3 $1 $18 {[%csl Gg5][%cal Rd3h7]} hxg5 18. Nxg5) 17... Rad8 {[%emt 0:07:23]} 18. Qd6 {[%emt 0:14:48]} Qxd6 {[%emt 0:00:05]} 19. Nxd6 {[%emt 0:00:52]} Bc8 {[%emt 0:02:01][%cal Oc6e5]} 20. Rad1 {[%emt 0:02:32]} Rd7 {[%emt 0:03:04]} 21. Rd2 {[%emt 0:01:32]} Rfd8 {[%emt 0:01:06][%cal Oc6e5]} 22. Red1 {[%emt 0:00:14]} Kf8 {[%emt 0:02:00]} 23. Kf1 {[%emt 0:01:00][%cal Bg1f1,Bf1e2,Be2e3][%mdl 32]} b6 {[%emt 0:05:37]} 24. Ke2 {[%emt 0:03:34]} a5 {[%emt 0:03:14]} 25. Nxc8 {[%emt 0:03:00] Excellent horsemanship.} Rxd2+ {[%emt 0:00:05]} 26. Rxd2 {[%emt 0:00:07]} Rxc8 {[%emt 0:00:02]} 27. Rd7 {[%emt 0:00:32]} a4 {[%emt 0:04:42]} 28. Ke3 {[%emt 0:02:13]} Ke8 {[%emt 0:00:52]} 29. Rd6 {[%emt 0:04:58] Weighted Error Value: White=0.18 (very precise) /Black=0.21 (precise)   Missed win:     	White=1     	---        Mistake:       	White=1     	Black=3      Inaccurate:     	White=1     	---        OK:         	White=5     	Black=15} 1/2-1/2

[Event "SixDays Budapest March IM B 2025"]
[Site "Budapest"]
[Date "2025.03.27"]
[Round "6.1"]
[White "Chakrabarty, Reyaansh"]
[Black "Katsanis, Vasileios Dim"]
[Result "1/2-1/2"]
[Annotator "TA"]
[ECO "B10"]
[WhiteElo "2181"]
[BlackElo "2253"]
[PlyCount "101"]
[EventDate "2025.03.23"]
[EventType "tourn"]
[EventCountry "HUN"]
[SourceTitle "playchess.com"]
[Source "ChessBase"]
[SourceQuality "1"]
[TimeControl "5400+30"]

{[%evp 10,101,25,15,31,4,24,7,18,11,16,-38,-38,-35,-20,-30,-26,-25,0,-5,-10,0,0,-27,1,-22,-16,-22,-17,-31,-27,-33,-35,-31,-34,-31,-27,-41,-32,-50,-52,-68,-65,-73,-67,-71,-60,-52,-43,-35,0,-18,0,-7,0,0,0,0,0,0,0,0,0,0,35,30,32,14,55,0,0,0,0,0,0,0,0,0,0,0,0,-8,0,0,143,173,234,289,285,241,317,304,253,98]} 1. e4 {[%emt 0:05:29]} c6 {[%emt 0:00:09]} 2. Nf3 {[%emt 0:00:04]} d5 {[%emt 0:00:05]} 3. Nc3 {[%emt 0:00:02]} dxe4 {[%emt 0:00:10]} 4. Nxe4 {[%emt 0:00:09]} Nf6 {[%emt 0:00:07]} 5. Qe2 {[%emt 0:00:20]} Nxe4 {[%emt 0:00:23]} 6. Qxe4 {[%emt 0:00:04]} Qa5 {[%emt 0:00:07] B11: Caro-Kann: Two Knights Variation.} 7. b4 {[%emt 0:00:07]} Qd5 {[%emt 0:00:07]} 8. Qh4 {[%emt 0:00:18]} Bf5 {[%emt 0:13:17] The position is equal.} 9. Bc4 {[%emt 0:07:32]} Qd6 {[%emt 0:01:16][%cal Oe7e6]} 10. Bb3 $146 {[%emt 0:06:16]} (10. d3 $11) (10. O-O e6 11. d3 Be7 12. Bg5 Bxg5 13. Qxg5 O-O 14. Nh4 Bg6 15. Rae1 Nd7 16. f4 {0-1 Tejedor Fuente,E (2419)-Gines Esteo,P (2455) Gijon 14th 2022 (1)}) 10... e6 $15 {[%emt 0:03:05]} 11. a3 {[%emt 0:10:58]} a5 {[%emt 0:13:41]} 12. Bb2 {[%emt 0:07:29]} Nd7 {[%emt 0:11:30] Wards off Be5} 13. O-O {[%emt 0:03:31]} Be7 {[%emt 0:03:04]} 14. Qd4 {[%emt 0:09:51]} Qxd4 {[%emt 0:02:40]} 15. Nxd4 {[%emt 0:00:21] A sharp opening} Bg6 {[%emt 0:02:12]} 16. f4 {[%emt 0:04:53]} Bf6 {[%emt 0:13:42]} (16... axb4 17. axb4 O-O 18. Rxa8 (18. Nxe6 fxe6 19. Rxa8 Rxa8 $14) 18... Rxa8 19. Nxe6 Bxb4 (19... fxe6 20. Bxe6+ Kf8 21. Bxd7 $11) 20. f5 (20. Nxg7 Nc5 $11) 20... fxe6 21. fxg6 $16) 17. Bc3 {[%emt 0:00:25]} a4 {[%emt 0:03:10]} 18. Ba2 {[%emt 0:00:41]} O-O-O {[%emt 0:05:55]} 19. f5 {[%emt 0:07:54]} Bxf5 {[%emt 0:03:43]} 20. Nxf5 {[%emt 0:00:32]} exf5 {[%emt 0:00:10]} 21. Bxf7 {[%emt 0:10:13]} g6 {[%emt 0:05:35]} 22. Bxf6 {[%emt 0:00:38]} Nxf6 {[%emt 0:00:05]} 23. d3 {[%emt 0:00:03][%cal Ob4b5]} Rhf8 {[%emt 0:01:29]} 24. Be6+ {[%emt 0:00:06]} Kc7 {[%emt 0:00:03]} 25. Rae1 {[%emt 0:00:36]} Rde8 {[%emt 0:00:28]} 26. Ba2 {[%emt 0:06:43]} Kd6 {[%emt 0:01:57]} 27. c4 {[%emt 0:01:06]} Ng4 {[%emt 0:01:25]} 28. c5+ {[%emt 0:00:49]} Kd7 {[%emt 0:00:23]} 29. Bb1 {[%emt 0:00:25]} Ne3 {[%emt 0:02:16]} 30. Rf3 {[%emt 0:01:20]} Nd5 {[%emt 0:02:22]} 31. Kf2 {[%emt 0:00:23]} Rxe1 {[%emt 0:01:17]} 32. Kxe1 $11 {[%emt 0:00:08][%mdl 4096] Endgame KRB-KRN} f4 {[%emt 0:00:25]} 33. g3 {[%emt 0:01:53]} g5 {[%emt 0:00:15]} 34. gxf4 {[%emt 0:00:06]} Nxf4 {[%emt 0:00:11]} 35. Kd2 {[%emt 0:02:18]} Ke6 {[%emt 0:04:28]} 36. Bc2 {[%emt 0:00:13]} g4 {[%emt 0:01:24]} 37. Re3+ {[%emt 0:00:45]} Kf6 {[%emt 0:00:13]} 38. Bxa4 {[%emt 0:03:20]} h5 {[%emt 0:00:50]} 39. Bd1 {[%emt 0:02:15]} (39. Re4 $1 $14 Kg5 40. Re7) 39... Nd5 {[%emt 0:00:32]} 40. Re4 {[%emt 0:00:58]} Kg5 {[%emt 0:01:12]} 41. Bb3 {[%emt 0:03:05]} Rf2+ {[%emt 0:02:24]} 42. Re2 {[%emt 0:00:00]} Rxe2+ {[%emt 0:00:31]} 43. Kxe2 {[%emt 0:00:01] KB-KN. White is a pawn up.} Nf4+ {[%emt 0:01:33]} 44. Ke3 {[%emt 0:02:41][%cal Ob4b5]} h4 {[%emt 0:00:22]} 45. Bd1 {[%emt 0:00:04]} Kf5 {[%emt 0:00:49]} 46. Bb3 {[%emt 0:01:10]} h3 {[%emt 0:00:32]} (46... Kg5 $11) 47. Kf2 $1 $16 {[%emt 0:00:55]} Nxd3+ {[%emt 0:00:42]} (47... Nh5 $142 48. Ba2 Ke5) 48. Kg3 $18 {[%emt 0:00:22] Threatens to win with Bc2.} Nf4 {[%emt 0:00:25] [#]} 49. Bd1 {[%emt 0:00:14] Prevents Ne2+} Nh5+ {[%emt 0:00:23]} 50. Kh4 {[%emt 0:00:05]} Nf6 {[%emt 0:01:01] [#]} 51. a4 $1 {[%emt 0:00:08] Weighted Error Value: White=0.07 (flawless) /Black=0.13 (very precise)   Mistake:       	White=2     	Black=2      Inaccurate:     	White=2     	Black=3      OK:         	White=21    	Black=20     Best:        	White=4     	Black=1      Strong:       	White=2     	---} 1/2-1/2

[Event "SixDays Budapest March IM B 2025"]
[Site "Budapest"]
[Date "2025.03.27"]
[Round "6.2"]
[White "Savanovic, Aleksandar"]
[Black "Pavan Karthikeya Varma Gunturi"]
[Result "1-0"]
[Annotator "TA"]
[ECO "B47"]
[WhiteElo "2355"]
[BlackElo "2015"]
[PlyCount "79"]
[EventDate "2025.03.23"]
[EventType "tourn"]
[EventCountry "HUN"]
[SourceTitle "playchess.com"]
[Source "ChessBase"]
[SourceQuality "1"]
[TimeControl "5400+30"]

{[%evp 20,79,25,10,72,73,62,27,36,31,69,76,71,62,92,76,90,83,108,96,220,231,229,233,258,242,306,297,428,370,329,298,683,558,541,477,863,845,852,815,788,714,925,933,822,440,426,372,397,390,396,397,397,397,397,397,390,390,383,365,332,302]} 1. e4 {[%emt 0:00:40]} c5 {[%emt 0:00:07]} 2. Nf3 {[%emt 0:00:40]} e6 {[%emt 0:00:09]} 3. d4 {[%emt 0:00:11]} cxd4 {[%emt 0:00:08]} 4. Nxd4 {[%emt 0:00:06]} Nc6 {[%emt 0:00:13]} 5. Nc3 {[%emt 0:00:28]} Qc7 {[%emt 0:00:18]} 6. Be2 {[%emt 0:00:07]} Nf6 {[%emt 0:00:07]} 7. O-O {[%emt 0:00:07]} Be7 {[%emt 0:00:32]} 8. Be3 {[%emt 0:00:20]} d6 {[%emt 0:02:43]} 9. f4 {[%emt 0:00:12]} O-O {[%emt 0:01:00]} 10. Kh1 {[%emt 0:00:12]} Nxd4 {[%emt 0:00:18]} 11. Qxd4 {[%emt 0:00:31]} d5 $146 {[%emt 0:02:55] B83: Sicilian Scheveningen: 6 Be2, lines without ...a6.} (11... b6 12. a4 Bb7 13. Bf3 d5 14. e5 Ne4 15. Bxe4 dxe4 16. Nb5 Qc6 17. Qd2 Rfd8 18. Nd4 Qc7 19. b3 {0-1 Pranav,V (2598)-Vokhidov,S (2643) Abu Dhabi op-A 30th 2024 (7)}) 12. e5 $16 {[%emt 0:06:38]} Nd7 {[%emt 0:00:05]} 13. Qd2 {[%emt 0:00:19]} Bc5 {[%emt 0:00:04] White has an edge.} 14. Bxc5 {[%emt 0:16:33]} Qxc5 {[%emt 0:02:10]} 15. Nb5 {[%emt 0:06:03]} f6 {[%emt 0:05:35]} 16. Nd4 {[%emt 0:00:50]} (16. b4 $5 Qe7 17. c4 dxc4 18. Bxc4 $14 (18. Nc7 Rb8 $14)) 16... Qe7 {[%emt 0:05:57]} 17. Qe3 {[%emt 0:15:53] White has more active pieces.} Nc5 {[%emt 0:03:40]} 18. c4 {[%emt 0:06:38]} fxe5 {[%emt 0:09:06]} 19. Qxe5 {[%emt 0:06:01]} Rd8 {[%emt 0:11:15] A mistake that costs the game.} (19... Qf6 $16) 20. cxd5 $18 {[%emt 0:11:08]} Rxd5 {[%emt 0:02:05] [#]} 21. Qe3 {[%emt 0:00:08]} Qf6 {[%emt 0:08:50]} 22. Rad1 {[%emt 0:00:11]} Bd7 {[%emt 0:03:43]} 23. Bc4 {[%emt 0:00:25][%cal Od4e6]} Rh5 {[%emt 0:03:37]} (23... Na4 {keeps fighting.} 24. Bxd5 exd5) 24. b4 {[%emt 0:01:34]} Na4 {[%emt 0:02:15]} 25. Nxe6 {[%emt 0:02:11]} (25. Bxe6+ Bxe6 26. Nxe6 Re8) 25... Nb2 $2 {[%emt 0:02:10]} (25... Bxe6 26. Bxe6+ Kh8) 26. Rxd7 {[%emt 0:01:42]} Nxc4 {[%emt 0:00:15]} 27. Qe2 {[%emt 0:01:04]} (27. Rxg7+ Qxg7 28. Qb3 Qh6 29. Qxc4 b5 $15 (29... Rxh2+ 30. Kg1 $17)) 27... Qh6 {[%emt 0:04:48]} (27... Rh6 $142 28. Nxg7 (28. Rxg7+ Kh8 $18) 28... Nd6) 28. Rxg7+ {[%emt 0:03:13]} Kh8 {[%emt 0:00:05]} 29. h3 {[%emt 0:00:15]} b5 {[%emt 0:02:49]} 30. Rg5 {[%emt 0:08:20]} Rxg5 {[%emt 0:01:36]} 31. fxg5 {[%emt 0:00:08]} Qg6 {[%emt 0:00:08]} 32. Qf3 {[%emt 0:01:39]} Re8 {[%emt 0:00:40]} 33. Qf6+ {[%emt 0:00:30]} Qxf6 {[%emt 0:00:08]} 34. gxf6 {[%emt 0:00:05][%mdl 4096] [#] Endgame Threatening mate with f7. KRN-KRN. White is two pawns up.} ({But not} 34. Rxf6 Ne3 35. Nc7 Re7 $18) 34... Nd6 {[%emt 0:00:26]} ({Not} 34... Rxe6 35. f7 Kg7 36. f8=Q+ (36. f8=B+ Kg6 $16) 36... Kg6 37. Qg8+ Kh6 38. Qxe6+ Kg5 39. Qg4+ Kh6 40. Rf6#) 35. f7 {[%emt 0:00:13]} Nxf7 {[%emt 0:00:10]} 36. Rxf7 {[%emt 0:00:02] and Rf8+ should not be overlooked} Rxe6 {[%emt 0:00:08]} 37. Rxa7 {[%emt 0:00:04]} Re4 {[%emt 0:00:37]} 38. a3 {[%emt 0:00:06]} Re3 {[%emt 0:00:03]} 39. Kh2 {[%emt 0:00:17]} Rd3 {[%emt 0:00:16]} 40. h4 {[%emt 0:00:10] Weighted Error Value: White=0.39/Black=0.72  Mistake:       	---       	Black=4      Inaccurate:     	White=1     	Black=2      OK:         	White=10    	Black=5      Best:        	White=1     	Black=3} 1-0